{"text_format":"3","workbook":"xlsx","n_sheets":3,"sheets":["學生清單","班級名冊","學生詳細資料"],"not_rendered":{"images":2,"defined_names":6},"read":"whole","date_system":"1900"}

{"sheet":"學生清單","index":0,"n_rows":7,"n_cols":12,"rows_kept":7,"merged":[[7,1,7,11]]}
[]
[]
[null," ","學生姓名","電子郵件","住家電話","行動電話","出生日期","緊急連絡人","緊急連絡電話","醫師","醫師電話","  "]
[null,{"$f":"Students[[#This Row],[學生姓名]]","v":"陳丹尼"},"陳丹尼","david@example.com",1235550121,1235550126,"1993-01-01","陳珍菲",1235550130,"劉史分",1235550134]
[null,{"$f":"Students[[#This Row],[學生姓名]]","v":"謝明揚"},"謝明揚","shane@example.com",1235550122,1235550127,"1992-01-01","謝柏納",1235550131,"李亞力",1235550135]
[null,{"$f":"Students[[#This Row],[學生姓名]]","v":"徐彼得"},"徐彼得","bharat@example.com",1235550124,1235550128,"1991-01-01","徐馬汀",1235550132,"余約翰",1235550136]
[null,{"$f":"Students[[#This Row],[學生姓名]]","v":"方名揚"},"方名揚","richard@example.com",1235550125,1235550129,"1992-01-01","方甦瓊",1235550133,"卓馬汀",1235550137]

{"sheet":"班級名冊","index":1,"n_rows":11,"n_cols":7,"rows_kept":11,"merged":[[12,1,12,6]]}
[]
[{"$nulls":3},"圖形設計學院"]
[null,null,"課程","平面藝術基礎課程","開始日期","2011-06-06"]
[null,null,"講師","方國明","結束日期","2011-08-26"]
[null,null,"註冊學生",{"$f":"COUNTA(StudentRoster[學生姓名])","v":4}]
[]
[null," ","學生姓名","電子郵件","住家電話","行動電話","  "]
[null,null,"陳丹尼",{"$f":"IFERROR(VLOOKUP(StudentRoster[[#This Row],[學生姓名]],Students[],3,FALSE),\"\")","v":"david@example.com"},{"$f":"IFERROR(VLOOKUP(StudentRoster[[#This Row],[學生姓名]],Students[],4,FALSE),\"\")","v":1235550121},{"$f":"IFERROR(VLOOKUP(StudentRoster[[#This Row],[學生姓名]],Students[],5,FALSE),\"\")","v":1235550126}]
[null,null,"謝明揚",{"$f":"IFERROR(VLOOKUP(StudentRoster[[#This Row],[學生姓名]],Students[],3,FALSE),\"\")","v":"shane@example.com"},{"$f":"IFERROR(VLOOKUP(StudentRoster[[#This Row],[學生姓名]],Students[],4,FALSE),\"\")","v":1235550122},{"$f":"IFERROR(VLOOKUP(StudentRoster[[#This Row],[學生姓名]],Students[],5,FALSE),\"\")","v":1235550127}]
[null,null,"徐彼得",{"$f":"IFERROR(VLOOKUP(StudentRoster[[#This Row],[學生姓名]],Students[],3,FALSE),\"\")","v":"bharat@example.com"},{"$f":"IFERROR(VLOOKUP(StudentRoster[[#This Row],[學生姓名]],Students[],4,FALSE),\"\")","v":1235550124},{"$f":"IFERROR(VLOOKUP(StudentRoster[[#This Row],[學生姓名]],Students[],5,FALSE),\"\")","v":1235550128}]
[null,null,"方名揚",{"$f":"IFERROR(VLOOKUP(StudentRoster[[#This Row],[學生姓名]],Students[],3,FALSE),\"\")","v":"richard@example.com"},{"$f":"IFERROR(VLOOKUP(StudentRoster[[#This Row],[學生姓名]],Students[],4,FALSE),\"\")","v":1235550125},{"$f":"IFERROR(VLOOKUP(StudentRoster[[#This Row],[學生姓名]],Students[],5,FALSE),\"\")","v":1235550129}]

{"sheet":"學生詳細資料","index":2,"n_rows":12,"n_cols":4,"rows_kept":12}
[]
[]
[]
[null,null,"學生姓名","陳丹尼"]
[null,null,"電子郵件",{"$f":"IFERROR(VLOOKUP(StudentName,Students[],3,FALSE),\"\")","v":"david@example.com"}]
[null,null,"住家電話",{"$f":"IFERROR(VLOOKUP(StudentName,Students[],4,FALSE),\"\")","v":1235550121}]
[null,null,"行動電話",{"$f":"IFERROR(VLOOKUP(StudentName,Students[],5,FALSE),\"\")","v":1235550126}]
[null,null,"出生日期",{"$f":"IFERROR(VLOOKUP(StudentName,Students[],6,FALSE),\"\")","v":"1993-01-01"}]
[null,null,"緊急連絡人",{"$f":"IFERROR(VLOOKUP(StudentName,Students[],7,FALSE),\"\")","v":"陳珍菲"}]
[null,null,"緊急連絡電話",{"$f":"IFERROR(VLOOKUP(StudentName,Students[],8,FALSE),\"\")","v":1235550130}]
[null,null,"醫師",{"$f":"IFERROR(VLOOKUP(StudentName,Students[],9,FALSE),\"\")","v":"劉史分"}]
[null,null,"醫師電話",{"$f":"IFERROR(VLOOKUP(StudentName,Students[],10,FALSE),\"\")","v":1235550134}]